bitfinex-derivatives/quotes_SOLF0:USTF0_20250127
["timestamp","ask_amount","ask_price","bid_price","bid_amount"]
[1737970575514,0.03391717,225.06,225.02,0.02844471]
[1737970575823,23.11543073,225.21,225.0,1.3553]
[1737970576815,0.03356085,225.13,225.1,4.4448]
[1737970577022,23.11543073,225.25,225.08,0.02882946]
[1737970577422,4.4421,225.24,225.17,4.4434]
[1737970577724,23.11543073,225.25,225.09,3.12]
[1737970577922,4.4431,225.2,225.12,4.4444]
[1737970578115,4.4431,225.2,225.1,1.4101]
[1737970578420,0.02869918,225.18,225.14,0.03118525]
[1737970581920,0.02869918,225.18,225.16,4.4436]
[1737970582124,23.11543073,225.33,225.14,0.03118525]
[1737970582425,4.4406,225.32,225.25,4.4418]
[1737970582621,23.11543073,225.33,225.25,4.4418]
[1737970582822,23.11543073,225.33,225.11,24.45563073]
[1737970583119,23.11543073,225.33,225.19,4.443]
[1737970583322,0.03138466,225.24,225.2,0.03358867]
[1737970583523,23.11543073,225.29,225.19,4.443]
[1737970583823,4.47045282,225.24,225.19,4.47135425]
[1737970584125,0.02835282,225.24,225.19,0.02835425]
[1737970584625,4.4425,225.22,225.19,0.02835425]
[1737970585522,0.02835282,225.24,225.23,4.4423]
[1737970585825,23.11543073,225.36,225.21,3.12]
[1737970586025,4.4405,225.33,225.21,3.12]
[1737970586320,23.11543073,225.36,225.22,1.4385]
[1737970586529,4.4402,225.34,225.27,4.4414]
[1737970586722,23.11543073,225.36,225.22,1.4385]
[1737970586928,0.02802101,225.31,225.27,0.03143399]
[1737970587123,4.4412,225.29,225.27,0.03143399]
[1737970587330,0.02802101,225.31,225.27,0.03143399]
[1737970587629,4.441,225.3,225.27,0.03143399]
[1737970587828,0.02802101,225.31,225.27,0.03143399]
[1737970588430,0.02802101,225.31,225.14,2.7352]
[1737970588729,23.11543073,225.32,225.15,0.76982788]
[1737970589027,23.11543073,225.32,225.14,2.7352]
[1737970589222,4.4409,225.3,225.24,4.4421]
[1737970589431,4.4409,225.3,225.14,2.7352]
[1737970589625,23.11543073,225.32,225.25,0.03308218]
[1737970589826,4.4413,225.28,225.25,0.03308218]
[1737970590128,0.03344396,225.29,225.14,2.7352]
[1737970590322,0.03344396,225.29,225.24,0.03382021]
[1737970590528,4.4413,225.28,225.15,0.77002611]
[1737970590726,0.03028674,225.29,225.14,2.7352]
[1737970590929,4.47158674,225.29,225.24,0.03029084]
[1737970591230,4.4413,225.29,225.15,1.4024]
[1737970591429,4.46929609,225.29,225.24,0.02876468]
[1737970591733,4.4413,225.29,225.24,0.02876468]
[1737970592228,0.0315071,225.29,225.24,0.02876468]
[1737970592625,23.11543073,225.28,225.24,0.02876468]
[1737970592824,4.4419,225.25,225.24,0.02876468]
[1737970593536,4.4426,225.22,225.15,1.4024]
[1737970593736,23.11543073,225.28,225.15,5.8461]
[1737970593936,4.4425,225.23,225.15,1.4024]
[1737970594234,23.11543073,225.28,225.15,1.4024]
[1737970594437,4.4418,225.26,225.15,1.4024]
[1737970594736,0.02900571,225.24,225.19,0.02885714]
[1737970594937,0.02900571,225.24,225.23,4.4423]
[1737970595135,4.4405,225.32,225.15,24.51783073]
[1737970595436,23.11543073,225.36,225.16,0.76960584]
[1737970595830,4.4405,225.33,225.16,0.76960584]
[1737970596028,23.11543073,225.36,225.26,4.4415]
[1737970596435,0.02812083,225.33,225.29,0.03390354]
[1737970596733,0.02812083,225.33,225.15,24.51783073]
[1737970597039,0.03025748,225.31,225.27,4.4415]
[1737970597227,0.03025748,225.31,225.26,0.03256694]
[1737970597430,23.11543073,225.4,225.26,0.03256694]
[1737970597628,0.0306307,225.31,225.26,0.03256694]
[1737970598032,0.0306307,225.31,225.2,3.12]
[1737970598229,0.0306307,225.31,225.26,4.47317753]
[1737970598738,0.0306307,225.31,225.29,4.4411]
[1737970598931,0.0306307,225.31,225.26,0.03157753]
[1737970599130,0.0306307,225.31,225.3,4.4409]
[1737970599837,4.4394,225.38,225.32,4.4404]
[1737970601137,0.03242364,225.37,225.34,4.4401]
[1737970601541,94.76209139,225.58,225.36,46.23086146]
[1737970601732,4.4357,225.57,225.49,4.437]
[1737970602232,4.4381,225.45,225.36,4.4396]
[1737970602434,23.11543073,225.48,225.28,4.5084]
[1737970602635,0.03260362,225.43,225.38,0.03341874]
[1737970603036,4.47110362,225.43,225.38,0.03341874]
[1737970603643,0.03260362,225.43,225.38,4.47261874]
[1737970603842,0.03260362,225.43,225.38,0.03341874]
[1737970604941,0.03260362,225.43,225.39,4.439]
[1737970605239,0.03260362,225.43,225.38,0.03341874]
[1737970605446,4.4386,225.42,225.38,0.03341874]
[1737970605638,0.03260362,225.43,225.38,0.03341874]
[1737970606538,4.4389,225.4,225.38,0.03341874]
[1737970606746,0.03260362,225.43,225.29,1.4616]
[1737970607042,4.4387,225.42,225.36,4.4397]
[1737970607241,4.4387,225.42,225.29,1.4616]
[1737970607643,4.4387,225.42,225.36,4.4397]
[1737970607839,0.02973929,225.38,225.36,4.4397]
[1737970608242,4.46913929,225.38,225.33,0.02947049]
[1737970608447,0.02973929,225.38,225.33,0.02947049]
[1737970609743,0.02973929,225.38,225.36,4.4397]
[1737970610251,0.02973929,225.38,225.36,4.39760857]
[1737970610549,0.02973929,225.38,225.37,4.4395]
[1737970611348,4.4374,225.49,225.42,4.4384]
[1737970611548,23.11543073,225.52,225.34,2.7402]
[1737970611850,23.11543073,225.48,225.34,2.7402]
[1737970612248,23.11543073,225.48,225.28,1.3884]
[1737970612444,23.11543073,225.44,225.28,1.3884]
[1737970612751,23.149543,225.4,225.36,0.02921283]
[1737970612944,23.149543,225.4,225.25,1.3692]
[1737970613152,23.11543073,225.4,225.25,1.3692]
[1737970613444,4.4397,225.37,225.3,4.4408]
[1737970613642,23.11543073,225.4,225.25,1.3692]
[1737970613845,23.11543073,225.36,225.25,1.3692]
[1737970614046,0.03089353,225.35,225.3,0.03407878]
[1737970614342,23.11543073,225.32,225.3,0.03407878]
[1737970614542,23.11543073,225.32,225.21,1.3672]
[1737970614749,23.11543073,225.32,225.17,1.3692]
[1737970615350,23.11543073,225.36,225.17,1.3692]
[1737970615548,27.55523073,225.36,225.3,4.4409]
[1737970615848,0.03244849,225.35,225.17,1.3692]
[1737970616048,4.47244849,225.35,225.17,1.3692]
[1737970616343,0.03253602,225.28,225.17,1.3692]
[1737970616549,0.03253602,225.28,225.18,1.3387]
[1737970616849,0.03253602,225.28,225.24,0.03093173]
[1737970617049,0.03253602,225.28,225.27,4.4415]
[1737970617450,23.11543073,225.4,225.25,1.4275]
[1737970618350,4.4396,225.37,225.25,1.4275]
[1737970618651,0.03380302,225.35,225.3,0.03331346]
[1737970618851,0.03380302,225.35,225.32,4.4405]
[1737970619354,0.03380302,225.35,225.3,0.03331346]
[1737970620251,4.47380302,225.35,225.3,0.03331346]
[1737970620452,23.11543073,225.32,225.3,0.03331346]
[1737970620654,23.11543073,225.32,225.18,2.7789]
[1737970620852,4.4411,225.3,225.23,4.4421]
[1737970621252,4.4404,225.33,225.28,4.4413]
[1737970621455,4.4404,225.33,225.18,2.7789]
[1737970621751,23.11543073,225.36,225.18,2.7789]
[1737970621947,0.03175923,225.28,225.24,4.442]
[1737970622552,0.03175923,225.28,225.24,4.47024742]
[1737970622758,0.03175923,225.28,225.24,0.02824742]
[1737970622948,0.03175923,225.28,225.27,4.4415]
[1737970623353,0.03175923,225.28,225.24,0.02824742]
[1737970625057,23.14718996,225.28,225.24,0.02824742]
[1737970625357,23.14718996,225.28,225.11,1.3631]
[1737970625556,23.14718996,225.28,225.2,4.4429]
[1737970625851,23.11543073,225.24,225.11,2.7651]
[1737970626249,23.11543073,225.2,225.09,1.3957]
[1737970626452,23.14855547,225.2,225.15,0.02888138]
[1737970626649,27.59155547,225.2,225.15,0.02888138]
[1737970627257,4.4433,225.18,225.15,0.02888138]
[1737970627857,23.14855547,225.2,225.15,0.02888138]
[1737970628658,23.14855547,225.2,225.03,1.4127]
[1737970629157,23.11543073,225.2,225.03,1.4127]
[1737970629459,4.4441,225.14,225.07,4.4453]
[1737970629659,23.11543073,225.16,225.02,2.7651]
[1737970629959,0.03408816,225.13,225.08,0.03248618]
[1737970630659,4.4445,225.12,225.08,0.03248618]
[1737970630855,0.03408816,225.13,225.08,0.03248618]
[1737970632160,0.03408816,225.13,225.12,4.4445]
[1737970633162,23.11543073,225.28,225.08,3.15248618]
[1737970633362,48.11624307,225.31,225.09,1.3254]
[1737970633557,23.11543073,225.32,225.12,23.11543073]
[1737970633861,23.11543073,225.36,225.12,23.11543073]
[1737970634161,4.4411,225.29,225.18,4.4431]
[1737970634461,0.02917643,225.26,225.22,0.0321422]
[1737970634661,0.02917643,225.26,225.24,4.442]
[1737970634862,23.11543073,225.4,225.22,0.0321422]
[1737970635160,23.11543073,225.4,225.21,1.3254]
[1737970635864,4.4396,225.37,225.21,1.3254]
[1737970636160,0.03037643,225.33,225.28,0.03193631]
[1737970636361,4.4409,225.3,225.28,0.03193631]
[1737970636557,4.4409,225.3,225.27,0.02960519]
[1737970636957,0.02879565,225.31,225.27,0.02960519]
[1737970637462,0.02879565,225.31,225.21,1.3254]
[1737970638458,0.02879565,225.31,225.24,4.4421]
[1737970638662,0.02879565,225.31,225.24,0.03387411]
[1737970638960,4.4413,225.28,225.24,0.03387411]
[1737970639161,0.02879565,225.31,225.24,0.03387411]
[1737970639565,4.4415,225.27,225.24,0.03387411]
[1737970639954,0.02879565,225.31,225.24,0.03387411]
[1737970640262,23.11543073,225.28,225.14,1.4346]
[1737970640461,23.11543073,225.24,225.14,1.4346]
[1737970640658,4.4432,225.19,225.14,1.4346]
[1737970640863,23.11543073,225.2,225.08,1.4346]
[1737970641062,23.11543073,225.16,224.99,4.5588]
[1737970641262,4.4444,225.13,225.05,4.4458]
[1737970641463,0.02845728,225.1,225.05,0.02944564]
[1737970641661,23.11543073,225.2,225.05,0.02944564]
[1737970641857,23.11543073,225.24,225.0,23.11543073]
[1737970642062,23.11543073,225.2,225.0,23.11543073]
[1737970642361,23.11543073,225.16,225.06,4.4456]
[1737970642562,23.11543073,225.16,224.99,4.5588]
[1737970642759,4.4443,225.13,225.05,4.4458]
[1737970642962,0.029693,225.1,225.05,0.03162841]
[1737970643461,23.11543073,225.2,225.05,0.03162841]
[1737970643663,23.11543073,225.2,225.0,23.11543073]
[1737970644068,23.11543073,225.2,225.01,0.7726194]
[1737970644568,0.03413745,225.13,225.08,0.03125702]
[1737970644758,0.03413745,225.13,225.09,4.445]
[1737970644961,0.03413745,225.13,225.08,0.03125702]
[1737970645467,0.03413745,225.13,225.11,4.4445]
[1737970645964,0.03413745,225.13,225.08,0.03125702]
[1737970646866,23.11543073,225.24,225.08,0.03125702]
[1737970647068,4.4416,225.27,225.05,10.44805443]
[1737970647267,23.11543073,225.28,225.08,23.11543073]
[1737970647462,23.11543073,225.28,225.09,12.67642927]
[1737970647662,23.11543073,225.28,225.21,4.4426]
[1737970647860,23.11543073,225.28,225.14,3.12]
[1737970648066,0.02834088,225.27,225.22,0.03131235]
[1737970650068,0.02834088,225.27,225.22,4.47361235]
[1737970650669,0.02834088,225.27,225.22,0.03131235]
[1737970650972,23.11543073,225.4,225.22,0.03131235]
[1737970651176,23.11543073,225.44,225.24,23.11543073]
[1737970651365,4.4384,225.43,225.24,23.11543073]
[1737970651565,0.4026,225.47,225.24,23.11543073]
[1737970651873,23.11543073,225.44,225.24,23.11543073]
[1737970652066,0.02929312,225.38,225.33,0.0301811]
[1737970652263,0.02929312,225.38,225.34,4.44]
[1737970652670,4.46869312,225.38,225.33,0.0301811]
[1737970653268,0.02929312,225.38,225.33,0.0301811]
[1737970653473,4.4399,225.35,225.33,0.0301811]
[1737970654074,0.02929312,225.38,225.33,0.0301811]
[1737970654375,23.11543073,225.36,225.33,0.0301811]
[1737970655778,4.44,225.35,225.33,0.0301811]
[1737970655976,0.02929312,225.38,225.33,0.0301811]
[1737970656473,4.46879312,225.38,225.33,0.0301811]
[1737970656673,0.02929312,225.38,225.33,0.0301811]
[1737970657773,0.02929312,225.38,225.32,4.42748024]
[1737970658074,4.4392,225.39,225.32,4.42748024]
[1737970658269,23.11543073,225.4,225.23,1.447]
[1737970658876,0.03053094,225.34,225.29,0.03204048]
[1737970659475,4.4387,225.42,225.29,0.03204048]
[1737970659869,4.4387,225.42,225.24,23.11543073]
[1737970660069,4.4387,225.42,225.36,4.4397]
[1737970660279,4.4388,225.41,225.36,4.4397]
[1737970660469,4.4388,225.41,225.24,23.11543073]
[1737970660669,23.11543073,225.44,225.25,0.76972931]
[1737970660877,23.11543073,225.44,225.3,0.02865325]
[1737970660878,0.02890831,225.35,225.3,0.02865325]
[1737970661077,0.02890831,225.35,225.23,1.447]
[1737970661278,0.02890831,225.35,225.3,0.03257663]
[1737970662171,4.4407,225.31,225.3,0.03257663]
[1737970662379,23.11543073,225.32,225.21,1.3381]
[1737970662572,23.11543073,225.28,225.21,1.3381]
[1737970662882,23.11543073,225.32,225.14,1.3656]
[1737970663178,4.4421,225.24,225.15,1.4501]
[1737970663376,23.11543073,225.28,225.14,1.3656]
[1737970663571,23.11543073,225.28,225.17,0.03311051]
[1737970663572,0.03307389,225.22,225.17,0.03311051]
[1737970665182,23.11543073,225.2,225.17,0.03311051]
[1737970665678,0.03307389,225.22,225.17,0.03311051]
[1737970666579,0.03307389,225.22,225.17,4.47651051]
[1737970666779,0.03307389,225.22,225.17,0.03311051]
[1737970666985,386.76209139,225.47,225.18,3.1]
[1737970667288,37.59197694,225.39,225.27,4.4415]
[1737970667589,37.59197694,225.39,225.2,1.3664]
[1737970667991,4.4406,225.32,225.2,1.3664]
[1737970668192,0.02971306,225.32,225.27,0.03148994]
[1737970668592,4.4411,225.3,225.27,0.03148994]
[1737970668791,0.02971306,225.32,225.27,0.03148994]
[1737970668993,37.59197694,225.31,225.27,0.03148994]
[1737970669294,4.4412,225.29,225.27,0.03148994]
[1737970670187,37.59197694,225.31,225.0,48.4225517]
[1737970670383,37.59197694,225.31,225.11,5.9086]
[1737970671291,0.03256812,225.23,225.19,0.02988477]
[1737970672294,4.47496812,225.23,225.19,0.02988477]
[1737970672789,4.4425,225.22,225.19,0.02988477]
[1737970672987,37.62454506,225.23,225.19,0.02988477]
[1737970673585,4.4425,225.22,225.19,0.02988477]
[1737970675395,4.4427,225.21,225.19,0.02988477]
[1737970675590,37.62454506,225.23,224.95,64.08567164]
[1737970675896,4.4446,225.12,225.07,4.4454]
[1737970676195,37.59197694,225.16,225.07,4.4454]
[1737970676493,37.59197694,225.16,225.03,4.0955]
[1737970676690,4.4447,225.11,225.09,0.02950121]
[1737970676888,0.0298279,225.14,225.09,0.02950121]
[1737970677788,0.0298279,225.14,225.13,4.4443]
[1737970677989,37.59197694,225.24,225.09,0.02950121]
[1737970678188,37.59197694,225.28,225.07,37.59197694]
[1737970678388,37.59197694,225.28,225.08,3.1]
[1737970678593,4.442,225.25,225.14,4.4441]
[1737970678793,37.59197694,225.28,225.08,3.1]
[1737970679300,0.03157986,225.2,225.18,4.4432]
[1737970679600,37.59197694,225.24,225.08,3.1]
[1737970679896,0.03052133,225.21,225.17,0.0301032]
[1737970680098,37.59197694,225.2,225.17,0.0301032]
[1737970680400,4.4433,225.18,225.17,0.0301032]
[1737970681595,0.03052133,225.21,225.17,0.0301032]
[1737970681797,0.03052133,225.21,225.08,3.1]
[1737970682301,37.81117694,225.36,225.15,37.59197694]
[1737970682599,37.81117694,225.36,225.23,4.4421]
[1737970682799,4.4409,225.3,225.16,2.8641]
[1737970683195,37.81117694,225.36,225.25,4.4419]
[1737970683695,0.02928492,225.33,225.2,3.1]
[1737970683896,37.59197694,225.41,225.28,0.03105809]
[1737970684401,4.4394,225.38,225.32,0.03005901]
[1737970684601,0.03005032,225.37,225.32,0.03005901]
[1737970684897,4.4402,225.34,225.32,0.03005901]
[1737970685194,37.59197694,225.33,225.2,3.1]
[1737970685399,37.59197694,225.37,225.2,3.1]
[1737970685601,37.59197694,225.41,225.2,40.69197694]
[1737970686002,37.59197694,225.37,225.2,3.1]
[1737970686198,0.03407994,225.33,225.28,0.03206524]
[1737970687204,0.03407994,225.33,225.31,4.4407]
[1737970688703,4.4387,225.42,225.29,1.3769]
[1737970688903,4.4387,225.42,225.3,1.436]
[1737970689201,4.4388,225.41,225.35,4.4398]
[1737970689399,37.59197694,225.48,225.32,3.1]
[1737970689597,94.76209139,225.55,225.32,40.69197694]
[1737970689802,2.431e-05,225.42,225.38,0.02810507]
[1737970690007,37.59197694,225.6,225.36,37.59197694]
[1737970690303,4.4353,225.59,225.4,37.59197694]
[1737970690505,4.4353,225.59,225.41,2.7948]
[1737970690703,37.59197694,225.64,225.41,2.7948]
[1737970690902,4.4355,225.58,225.5,4.4368]
[1737970691102,4.4355,225.58,225.5,4.46943356]
[1737970691306,0.03260293,225.55,225.5,0.03263356]
[1737970691699,0.6577,225.68,225.46,3.1]
[1737970691700,38.24967694,225.68,225.46,3.1]
[1737970691903,38.24967694,225.68,225.5,0.0305166]
[1737970692099,4.4346,225.63,225.46,3.1]
[1737970692301,38.24967694,225.68,225.48,37.59197694]
[1737970692610,4.4323,225.74,225.65,4.4339]
[1737970692800,37.59197694,225.8,225.61,3.1]
[1737970692998,37.59197694,225.8,225.62,1.4067]
[1737970693403,4.4323,225.74,225.69,0.02882384]
[1737970693805,37.59197694,225.8,225.69,0.02882384]
[1737970694102,4.4316,225.78,225.69,4.46202384]
[1737970694309,37.59197694,225.8,225.69,0.02882384]
[1737970695008,4.4317,225.77,225.69,0.02882384]
[1737970695307,37.59197694,225.8,225.69,0.02882384]
[1737970696206,37.59197694,225.85,225.69,0.02882384]
[1737970696409,4.4306,225.83,225.69,0.02882384]
[1737970696607,4.4306,225.83,225.75,0.0304135]
[1737970696907,4.4306,225.83,225.75,4.4624135]
[1737970697302,37.59197694,225.85,225.75,0.0304135]
[1737970697505,4.4306,225.83,225.75,4.4623135]
[1737970697905,37.59197694,225.89,225.75,0.0304135]
[1737970698112,37.59197694,225.89,225.78,4.4314]
[1737970698612,37.59197694,225.89,225.81,0.0324534]
[1737970700312,37.59197694,225.85,225.71,1.4052]
[1737970700509,37.59197694,225.77,225.67,4.4341]
[1737970700709,37.59197694,225.84,225.67,4.4341]
[1737970700911,37.59197694,225.88,225.67,4.4341]
[1737970701214,37.59197694,225.88,225.69,37.59197694]
[1737970701606,0.03114117,225.81,225.76,0.03264694]
[1737970702214,37.59197694,225.92,225.76,0.03264694]
[1737970702516,37.59197694,225.92,225.8,4.4309]
[1737970703014,4.4306,225.83,225.74,5.8099]
[1737970703215,37.59197694,225.88,225.74,1.3778]
[1737970703410,37.59197694,225.83,225.67,1.3341]
[1737970703607,37.59197694,225.83,225.76,0.03015305]
[1737970703811,37.59197694,225.79,225.76,0.03015305]
[1737970704011,37.59197694,225.79,225.67,1.3341]
[1737970704211,4.4324,225.74,225.67,5.7676]
[1737970704418,4.4324,225.74,225.71,0.02922554]
[1737970704715,4.432,225.76,225.71,0.02922554]
[1737970704917,37.59197694,225.83,225.71,0.02922554]
[1737970705117,37.59197694,225.83,225.67,1.3341]
[1737970705414,37.59197694,225.79,225.75,0.03300568]
[1737970705917,37.59197694,225.79,225.63,1.4091]
[1737970706118,0.5832,225.83,225.75,8.77e-05]
[1737970706318,0.5832,225.83,225.63,1.4091]
[1737970706617,4.4322,225.75,225.63,1.4091]
[1737970706817,0.5832,225.83,225.63,1.4091]
[1737970707018,4.4316,225.78,225.71,4.4328]
[1737970707221,4.4316,225.78,225.63,1.4091]
[1737970707412,0.03400762,225.77,225.72,0.03089864]
[1737970709522,0.03400762,225.77,225.76,4.4319]
[1737970709912,94.76209139,225.9,225.69,3.08675223]
[1737970710111,37.59197694,225.92,225.69,3.08675223]
[1737970711222,0.02861125,225.82,225.78,4.46043497]
[1737970711425,37.59197694,225.88,225.78,0.02903497]
[1737970711618,0.02921659,225.82,225.78,0.02903497]
[1737970711924,37.59197694,225.92,225.78,0.02903497]
[1737970712119,0.02928542,225.82,225.78,0.02903497]
[1737970712325,37.59197694,225.92,225.78,0.02903497]
[1737970712626,0.02985012,225.82,225.78,0.02903497]
[1737970712818,0.5824,225.95,225.69,3.08675223]
[1737970712819,0.5824,225.95,225.72,37.59197694]
[1737970713127,0.03390503,225.82,225.78,0.03210579]
[1737970713321,4.4294,225.89,225.83,4.4304]
[1737970713527,0.5824,225.95,225.78,0.03063062]
[1737970713723,0.03233208,225.82,225.78,0.03063062]
[1737970714027,0.03129384,225.88,225.78,0.02932286]
[1737970714227,0.5824,225.95,225.78,0.02932286]
[1737970714420,0.5824,225.95,225.86,4.4299]
[1737970714624,0.5824,225.95,225.83,0.02893814]
[1737970714824,0.0332903,225.88,225.83,0.02893814]
[1737970716121,0.0332903,225.88,225.87,4.4297]
[1737970716722,0.0332903,225.88,225.83,0.02893814]
[1737970716923,0.0332903,225.88,225.85,4.43]
[1737970717528,0.0332903,225.88,225.84,4.4301]
[1737970717726,0.0332903,225.88,225.83,0.02893814]
[1737970718333,0.0332903,225.88,225.86,4.4299]
[1737970718736,0.0332903,225.88,225.83,0.02893814]
[1737970719634,4.4303,225.84,225.83,3.814e-05]
[1737970719837,37.62526724,225.88,225.73,1.4334]
[1737970720237,37.62526724,225.88,225.74,4.4322]
[1737970720238,4.4313,225.79,225.74,4.4322]
[1737970720435,37.59197694,225.88,225.73,1.4334]
[1737970721034,0.0279751,225.83,225.78,0.02799256]
[1737970721938,4.4308,225.82,225.78,0.02799256]
[1737970722336,0.0279751,225.83,225.78,0.02799256]
[1737970722541,4.431,225.81,225.78,0.02799256]
[1737970722942,0.0279751,225.83,225.78,0.02799256]
[1737970723142,0.0279751,225.83,225.81,4.4309]
[1737970723345,0.0279751,225.83,225.78,0.02799256]
[1737970725746,4.4313,225.79,225.78,0.02799256]
[1737970726643,4.4323,225.74,225.68,1.4607]
[1737970726845,23.01460383,225.83,225.68,1.4607]
[1737970727443,23.01460383,225.83,225.66,1.3644]
[1737970727845,0.03183393,225.77,225.72,0.0338949]
[1737970728049,0.03183393,225.77,225.62,1.3542]
[1737970728349,0.5815,225.78,225.62,1.3542]
[1737970728548,4.4324,225.74,225.65,4.434]
[1737970728744,0.5815,225.78,225.62,1.3542]
[1737970729247,0.03084005,225.72,225.68,0.03142102]
[1737970730249,4.46354005,225.72,225.68,0.03142102]
[1737970730449,0.03084005,225.72,225.68,0.03142102]
[1737970730649,4.4331,225.7,225.68,0.03142102]
[1737970730848,4.4331,225.7,225.64,4.434]
[1737970731050,0.03084005,225.72,225.62,4.4345]
[1737970731250,4.4332,225.69,225.62,4.4345]
[1737970731549,23.01460383,225.75,225.56,1.4371]
[1737970731846,4.4333,225.69,225.56,1.4371]
[1737970732143,0.03101466,225.68,225.63,0.03038873]
[1737970732349,0.5815,225.78,225.57,23.01460383]
[1737970732550,0.03009563,225.68,225.63,0.03311737]
[1737970732947,23.01460383,225.75,225.56,1.4371]
[1737970733248,0.03060765,225.68,225.63,0.02935819]
[1737970737052,0.03060765,225.68,225.66,4.4338]
[1737970738255,0.1267,225.82,225.64,3.1]
[1737970738447,23.01460383,225.91,225.69,23.01460383]
[1737970738848,94.76209139,225.92,225.81,4.4309]
[1737970739355,94.76209139,225.92,225.84,0.02912233]
[1737970739356,0.02909867,225.89,225.84,0.02912233]
[1737970739554,23.01460383,225.91,225.69,23.01460383]
[1737970739747,0.02812115,225.89,225.84,0.03075641]
[1737970739947,23.01460383,225.91,225.69,23.01460383]
[1737970740153,0.02908727,225.89,225.84,0.03102761]
[1737970740355,23.01460383,225.91,225.69,23.01460383]
[1737970740558,0.03142911,225.89,225.84,0.03249396]
[1737970740851,0.15568,225.8,225.71,37.38062312]
[1737970741057,0.15568,225.8,225.69,3.1]
[1737970741252,0.03201302,225.78,225.73,0.03118258]
[1737970742249,0.03201302,225.78,225.75,4.4319]
[1737970742453,0.03201302,225.78,225.73,0.03118258]
[1737970742955,0.03201302,225.78,225.76,4.4318]
[1737970743356,0.15568,225.8,225.73,0.03118258]
[1737970743957,0.15568,225.8,225.77,4.4316]
[1737970744251,0.15568,225.8,225.73,0.03118258]
[1737970744663,0.03138206,225.79,225.73,0.03118258]
[1737970745555,0.15568,225.8,225.79,4.4313]
[1737970745759,37.38062312,225.96,225.73,0.03118258]
[1737970745957,37.38062312,225.96,225.75,37.38062312]
[1737970746158,37.38062312,225.96,225.86,4.4298]
[1737970746659,4.4285,225.93,225.86,4.4298]
[1737970746859,0.03372159,225.93,225.89,0.03210333]
[1737970747557,4.4288,225.92,225.89,0.03210333]
[1737970748061,0.03372159,225.93,225.89,0.03210333]
[1737970748655,4.4291,225.9,225.89,0.03210333]
[1737970748855,4.4291,225.9,225.89,3.33e-06]
[1737970750358,37.38062312,225.92,225.71,1.4512]
[1737970750553,3.1,225.95,225.72,4.4325]
[1737970750554,37.38062312,225.84,225.72,4.4325]
[1737970750958,37.38062312,225.84,225.71,1.4512]
[1737970751457,0.0310006,225.8,225.75,0.03375079]
[1737970751662,4.4621006,225.8,225.75,0.03375079]
[1737970751861,0.0310006,225.8,225.75,0.03375079]
[1737970752557,0.0310006,225.8,225.76,4.4318]
[1737970752761,0.0310006,225.8,225.75,0.03375079]
[1737970753163,0.0310006,225.8,225.76,4.4318]
[1737970753361,0.0310006,225.8,225.75,0.03375079]
[1737970755662,41.81252312,225.76,225.75,5.079e-05]
[1737970756058,37.38062312,225.76,225.61,3.1]
[1737970756265,4.4332,225.7,225.62,4.4346]
[1737970756465,4.4332,225.7,225.61,3.1]
[1737970756669,37.38062312,225.72,225.59,1.3322]
[1737970757266,0.02909808,225.68,225.63,0.02997547]
[1737970757462,4.434,225.65,225.63,7.547e-05]
[1737970757765,37.38062312,225.64,225.63,7.547e-05]
[1737970759763,37.38062312,225.64,225.49,182.05335295]
[1737970759969,37.38062312,225.55,225.49,177.61635295]
[1737970760268,37.38062312,225.55,225.43,4.4383]
[1737970760568,37.38062312,225.55,225.41,2.7748]
[1737970760569,4.4362,225.54,225.41,2.7748]
[1737970760769,37.38062312,225.55,225.41,2.7748]
[1737970760967,41.81672312,225.55,225.41,2.7748]
[1737970761167,0.02902884,225.51,225.47,0.02837514]
[1737970761463,4.46602884,225.51,225.47,0.02837514]
[1737970761669,0.02902884,225.51,225.47,0.02837514]
[1737970762068,37.40965196,225.51,225.47,0.02837514]
[1737970762467,4.4373,225.49,225.47,0.02837514]
[1737970766174,0.02902884,225.51,225.47,0.02837514]
[1737970766369,37.38062312,225.6,225.47,0.02837514]
[1737970766574,37.38062312,225.6,225.53,4.4364]
[1737970766974,37.38062312,225.64,225.53,4.4364]
[1737970767174,4.4351,225.6,225.53,4.4364]
[1737970767470,4.4351,225.6,225.48,1.4047]
[1737970767675,0.03306204,225.59,225.54,0.03392765]
[1737970768374,4.4358,225.56,225.54,0.03392765]
[1737970768675,0.03306204,225.59,225.54,4.47002765]
[1737970768869,0.03306204,225.59,225.54,0.03392765]
[1737970769573,4.4333,225.69,225.54,0.03392765]
[1737970769770,37.38062312,225.72,225.54,0.03392765]